[Event "ITT 1st Parada Jamundi 2022"]
[Site "Jamundi Valle"]
[Date "2022.12.11"]
[Round "9.22"]
[White "Hernandez Bermudez, Manuela"]
[Black "Palacios Gordillo, Camila Estefania"]
[Result "1/2-1/2"]
[ECO "C65"]
[WhiteElo "1815"]
[BlackElo "1625"]
[Annotator "NA RC COMBH"]
[PlyCount "93"]
[EventDate "2022.12.05"]
[EventType "swiss"]
[EventCountry "COL"]
[SourceTitle "playchess.com"]
[Source "ChessBase"]
[SourceQuality "1"]
[TimeControl "5400+30"]

1. e4 {[%emt 0:00:34]} e5 {[%emt 0:00:00]} 2. Nf3 {[%emt 0:00:00]} Nc6 {[%emt 0:00:00]} 3. Bb5 {[%emt 0:00:31]} Nf6 {[%emt 0:00:03]} 4. d3 {[%emt 0:00:18]} Bc5 {[%emt 0:00:38]} 5. Bxc6 {[%emt 0:00:33]} dxc6 {[%emt 0:00:10]} 6. h3 {[%emt 0:00:25]} Qe7 {[%emt 0:01:07] outshines the older 6...0-0.} 7. Nc3 {[%emt 0:01:32]} O-O {[%emt 0:02:32]} 8. O-O {[%emt 0:03:53]} Nd7 {[%emt 0:05:39]} 9. Ne2 {[%emt 0:09:32]} Re8 {[%emt 0:02:34] [#]} 10. g4 $146 {[%emt 0:07:09]} ({Predecessor:} 10. Ng3 $11 Nf8 11. Be3 Ng6 12. Nf5 Qf8 13. h4 Bxe3 14. fxe3 f6 15. h5 Ne7 16. Ng3 {1-0 (31) Kavon,R-Harman,K (1711) ICCF email 2017}) 10... Nf8 {[%emt 0:03:17]} 11. Ng3 {[%emt 0:01:36]} Ng6 {[%emt 0:09:21]} (11... g6 $15) 12. Bg5 {[%emt 0:05:05]} f6 {[%emt 0:02:27]} 13. Be3 {[%emt 0:00:12]} Nf4 {[%emt 0:01:36]} 14. Kh2 {[%emt 0:04:14]} Be6 {[%emt 0:04:40]} 15. Nh4 {[%emt 0:06:31]} g6 {[%emt 0:03:13]} 16. Ng2 {[%emt 0:09:56]} Nxg2 {[%emt 0:10:04]} 17. Kxg2 {[%emt 0:00:02]} (17. Bxc5 {should be considered.} Qxc5 18. Kxg2) 17... g5 {[%emt 0:00:47]} (17... Bxe3 $1 $11 18. fxe3 Rf8) 18. Rh1 {[%emt 0:07:10]} Kg7 {[%emt 0:02:05]} (18... Bxe3 $142 19. fxe3 Rf8) 19. Qf3 {[%emt 0:01:41]} Bb6 {[%emt 0:05:18]} ({Black should try} 19... Bxe3 20. fxe3 Kh8) 20. Rh2 {[%emt 0:04:13]} Rh8 {[%emt 0:04:00]} (20... Bxe3 $142 21. fxe3 Kh8) 21. Rah1 {[%emt 0:01:54]} h6 {[%emt 0:04:54]} 22. h4 {[%emt 0:05:45]} Raf8 {[%emt 0:00:19]} 23. a3 {[%emt 0:05:58]} Qd7 {[%emt 0:01:46]} 24. Nf5+ {[%emt 0:00:47]} Bxf5 {[%emt 0:00:47]} 25. gxf5 {[%emt 0:00:02]} Qd8 {[%emt 0:02:24]} 26. Qg3 {[%emt 0:02:42]} Bxe3 {[%emt 0:01:21]} 27. fxe3 {[%emt 0:00:35]} c5 {[%emt 0:01:20]} 28. Qh3 {[%emt 0:01:23]} Qe8 {[%emt 0:00:39]} 29. b3 {[%emt 0:05:42]} Qh5 {[%emt 0:01:31]} 30. Kf2 {[%emt 0:01:02]} Qe8 {[%emt 0:01:40]} 31. Qg3 {[%emt 0:01:50]} Qd8 {[%emt 0:00:38]} 32. Rh3 {[%emt 0:00:54]} Qe8 {[%emt 0:01:48]} 33. R3h2 {[%emt 0:00:40]} Qd8 {[%emt 0:00:16]} 34. Qh3 {[%emt 0:04:50]} Qe8 {[%emt 0:00:09]} 35. Qf3 {[%emt 0:00:59]} Qf7 {[%emt 0:00:55]} 36. Ke2 {[%emt 0:01:03]} Qe8 {[%emt 0:01:15]} 37. Rh3 {[%emt 0:00:57]} Qf7 {[%emt 0:00:26]} 38. R1h2 {[%emt 0:00:48]} Qe8 {[%emt 0:00:10]} 39. Rg3 {[%emt 0:00:20]} Kf7 {[%emt 0:03:02]} 40. Kd2 {[%emt 0:01:25]} Rfg8 $11 {[%emt 0:01:40]} 41. h5 {[%emt 0:01:22]} Qb5 {[%emt 0:00:38]} 42. Kc1 {[%emt 0:00:30]} Rd8 {[%emt 0:00:59]} 43. Qe2 {[%emt 0:01:22]} Qa5 {[%emt 0:01:13]} 44. Kb2 {[%emt 0:00:02]} Rd6 {[%emt 0:00:42]} 45. Qd2 {[%emt 0:00:25]} Qb5 {[%emt 0:02:02]} 46. Qc3 {[%emt 0:00:56]} b6 {[%emt 0:00:47]} 47. Rgh3 {[%emt 0:04:40]} 1/2-1/2

[Event "ITT 1st Parada Jamundi 2022"]
[Site "Jamundi Valle"]
[Date "2022.12.11"]
[Round "9.23"]
[White "Idrobo, Juan Manuel"]
[Black "Castro Castro, Joaquin"]
[Result "0-1"]
[ECO "B22"]
[WhiteElo "1809"]
[BlackElo "1797"]
[Annotator "NA RC COMBH"]
[PlyCount "72"]
[EventDate "2022.12.05"]
[EventType "swiss"]
[EventCountry "COL"]
[SourceTitle "playchess.com"]
[Source "ChessBase"]
[SourceQuality "1"]
[TimeControl "5400+30"]

1. e4 {[%emt 0:00:16]} c5 {[%emt 0:00:06]} 2. d4 {[%emt 0:00:35]} cxd4 {[%emt 0:01:09]} 3. c3 {[%emt 0:01:44]} Nf6 {[%emt 0:01:58]} 4. e5 {[%emt 0:02:14]} Nd5 {[%emt 0:00:07]} 5. cxd4 {[%emt 0:00:36]} Nc6 {[%emt 0:01:35]} 6. Nf3 {[%emt 0:02:30]} d6 {[%emt 0:01:33]} 7. Bc4 {[%emt 0:02:44]} dxe5 {[%emt 0:04:42]} 8. dxe5 {[%emt 0:01:41]} e6 {[%emt 0:00:29]} 9. O-O {[%emt 0:00:30]} Be7 {[%emt 0:01:50]} 10. a3 {[%emt 0:01:00]} O-O {[%emt 0:01:49]} 11. Qe2 {[%emt 0:01:28]} Qb6 {[%emt 0:05:17]} 12. Rd1 {[%emt 0:03:33]} Na5 {[%emt 0:05:06]} 13. Ba2 {[%emt 0:16:04]} Nb3 {[%emt 0:08:02]} 14. Bxb3 {[%emt 0:00:09]} Qxb3 {[%emt 0:00:07]} 15. Nbd2 {[%emt 0:01:49]} Qa4 {[%emt 0:08:47]} 16. Nf1 {[%emt 0:15:56]} Bc5 {[%emt 0:15:54]} 17. h4 {[%emt 0:06:01]} Bd7 {[%emt 0:03:04]} 18. Be3 {[%emt 0:07:04]} Nxe3 {[%emt 0:13:16]} 19. Nxe3 {[%emt 0:00:34]} Bc6 {[%emt 0:00:39]} 20. b4 {[%emt 0:02:35]} Be7 {[%emt 0:01:54]} 21. h5 {[%emt 0:06:33]} a5 {[%emt 0:04:45]} 22. Rd4 {[%emt 0:11:33]} Qb5 {[%emt 0:05:53]} 23. Qxb5 {[%emt 0:02:22]} Bxb5 {[%emt 0:00:06]} 24. Rad1 {[%emt 0:00:50]} axb4 {[%emt 0:01:43]} 25. axb4 {[%emt 0:00:16]} Ra4 {[%emt 0:00:33]} 26. Kh2 {[%emt 0:01:54]} h6 {[%emt 0:00:32]} 27. Nc2 {[%emt 0:01:39]} Rc8 {[%emt 0:01:28]} 28. Nfe1 {[%emt 0:00:47]} Rc3 {[%emt 0:01:27]} 29. Rb1 {[%emt 0:03:46]} Ra2 {[%emt 0:01:15]} 30. Rd2 {[%emt 0:02:07]} Bg5 {[%emt 0:00:20]} 31. Rd4 {[%emt 0:02:52]} Rcxc2 {[%emt 0:03:12]} 32. Nxc2 {[%emt 0:00:07]} Rxc2 {[%emt 0:00:06]} 33. f3 {[%emt 0:00:50]} Bc6 {[%emt 0:02:35]} 34. Kg3 {[%emt 0:00:17]} Re2 {[%emt 0:00:59]} 35. Ra1 {[%emt 0:01:15]} Be7 {[%emt 0:00:45]} 36. Rb1 {[%emt 0:01:01]} Rxe5 {[%emt 0:05:27]} 0-1

[Event "ITT 1st Parada Jamundi 2022"]
[Site "Jamundi Valle"]
[Date "2022.12.11"]
[Round "9.24"]
[White "Estrada Velandia, Henry Andres"]
[Black "Sanchez Barreto, Josue Efrain"]
[Result "1-0"]
[ECO "D00"]
[WhiteElo "1883"]
[BlackElo "1349"]
[Annotator "NA RC COMBH"]
[PlyCount "100"]
[EventDate "2022.12.05"]
[EventType "swiss"]
[EventCountry "COL"]
[SourceTitle "playchess.com"]
[Source "ChessBase"]
[SourceQuality "1"]
[TimeControl "5400+30"]

1. d4 {[%emt 0:02:37]} d5 {[%emt 0:00:16]} 2. e3 {[%emt 0:00:11]} Nf6 {[%emt 0:00:11]} 3. Bd3 {[%emt 0:01:02]} c5 {[%emt 0:00:31]} 4. c3 {[%emt 0:00:07]} Nc6 {[%emt 0:00:44]} 5. f4 {[%emt 0:00:10]} Bg4 {[%emt 0:00:11]} 6. Ne2 {[%emt 0:00:08]} e6 {[%emt 0:00:07]} 7. Nd2 {[%emt 0:00:14]} Bd6 {[%emt 0:00:28]} 8. O-O {[%emt 0:00:09]} O-O {[%emt 0:00:13]} 9. Qe1 {[%emt 0:00:36]} Bf5 {[%emt 0:01:21]} 10. Bb1 {[%emt 0:02:08]} Ne7 {[%emt 0:00:28]} 11. Ng3 {[%emt 0:00:42]} Bxb1 {[%emt 0:00:19]} 12. Rxb1 {[%emt 0:00:05]} Nf5 {[%emt 0:00:15]} 13. Nb3 {[%emt 0:02:35]} Nxg3 {[%emt 0:01:57]} 14. hxg3 {[%emt 0:00:33]} Ne4 {[%emt 0:00:15]} 15. g4 {[%emt 0:00:29]} f5 {[%emt 1:30:44]} 16. g5 {[%emt 0:00:13]} h6 {[%emt 0:00:00]} 17. gxh6 {[%emt 0:00:16]} gxh6 {[%emt 0:00:00]} 18. Nd2 {[%emt 0:00:22]} Nxd2 {[%emt 0:00:00]} 19. Bxd2 {[%emt 0:00:18]} Kh7 {[%emt 0:00:00]} 20. Rf3 {[%emt 0:00:23]} Rg8 {[%emt 0:00:00]} 21. Rh3 {[%emt 0:00:14]} Qf6 {[%emt 0:00:00]} 22. Qe2 {[%emt 0:00:15]} Rg4 {[%emt 0:00:00]} 23. Kf2 {[%emt 0:01:29]} Rag8 {[%emt 0:00:00]} 24. g3 {[%emt 0:00:18]} R8g6 {[%emt 0:00:00]} 25. Qb5 {[%emt 0:03:24]} Qg7 {[%emt 0:00:00]} 26. Rg1 {[%emt 0:00:10]} a6 {[%emt 0:00:00]} 27. Qb6 {[%emt 0:01:50]} Qc7 {[%emt 0:00:00]} 28. Qxc7+ {[%emt 0:00:13]} Bxc7 {[%emt 0:00:00]} 29. dxc5 {[%emt 0:00:12]} Kg7 {[%emt 0:00:00]} 30. c4 {[%emt 0:01:11]} dxc4 {[%emt 0:00:00]} 31. Rc1 {[%emt 0:00:16]} e5 {[%emt 0:08:00]} 32. Rxc4 {[%emt 0:01:00]} exf4 {[%emt 0:00:00]} 33. exf4 {[%emt 0:00:18]} Rc6 {[%emt 0:00:00]} 34. Rh5 {[%emt 0:01:44]} Kg6 {[%emt 0:00:00]} 35. Rh1 {[%emt 0:00:12]} b6 {[%emt 0:00:00]} 36. Be3 {[%emt 0:01:37]} h5 {[%emt 0:00:00]} 37. b3 {[%emt 0:01:05]} bxc5 {[%emt 0:00:00]} 38. Rxc5 {[%emt 0:01:57]} Rxc5 {[%emt 0:00:00]} 39. Bxc5 {[%emt 0:00:16]} h4 {[%emt 0:00:00]} 40. Rxh4 {[%emt 0:00:52]} Rxh4 {[%emt 0:00:00]} 41. gxh4 {[%emt 0:00:10]} Bxf4 {[%emt 0:00:00]} 42. b4 {[%emt 0:01:08]} Kh5 {[%emt 0:00:00]} 43. Kf3 {[%emt 0:00:44]} Bd2 {[%emt 0:00:00]} 44. Be7 {[%emt 0:00:35]} Kg6 {[%emt 0:00:00]} 45. a4 {[%emt 0:02:12]} Kf7 {[%emt 0:00:00]} 46. Bc5 {[%emt 0:00:52]} Ke6 {[%emt 0:00:00]} 47. b5 {[%emt 0:00:36]} axb5 {[%emt 0:00:00]} 48. axb5 {[%emt 0:00:01]} Kd5 {[%emt 0:00:00]} 49. b6 {[%emt 0:01:05]} Kc6 {[%emt 0:00:00]} 50. Be3 {[%emt 0:01:24]} Kd5 {[%emt 0:09:30]} 1-0

[Event "ITT 1st Parada Jamundi 2022"]
[Site "Jamundi Valle"]
[Date "2022.12.11"]
[Round "9.25"]
[White "Ramirez, Andres Felipe"]
[Black "Gomez Saenz, Manuela"]
[Result "1-0"]
[ECO "B52"]
[WhiteElo "1571"]
[BlackElo "1479"]
[Annotator "NA RC COMBH"]
[PlyCount "57"]
[EventDate "2022.12.05"]
[EventType "swiss"]
[EventCountry "COL"]
[SourceTitle "playchess.com"]
[Source "ChessBase"]
[SourceQuality "1"]
[TimeControl "5400+30"]

1. e4 {[%emt 0:00:06]} c5 {[%emt 0:00:13]} 2. Nf3 {[%emt 0:00:10]} d6 {[%emt 0:00:22]} 3. Bb5+ {[%emt 0:00:13]} Bd7 {[%emt 0:00:21]} 4. a4 {[%emt 0:00:22]} a6 {[%emt 0:00:41]} 5. Bxd7+ {[%emt 0:01:33]} Nxd7 {[%emt 0:00:09]} 6. a5 {[%emt 0:00:24]} Ngf6 {[%emt 0:00:35]} 7. d3 {[%emt 0:00:11]} g6 {[%emt 0:01:46]} 8. O-O {[%emt 0:00:14]} Bg7 {[%emt 0:00:58]} 9. Nbd2 {[%emt 0:00:10]} O-O {[%emt 0:01:00]} 10. Nc4 {[%emt 0:01:04]} Qc7 {[%emt 0:07:42]} 11. Bd2 {[%emt 0:00:34]} Ng4 {[%emt 0:01:05]} 12. Ra2 {[%emt 0:03:10]} Rfb8 {[%emt 0:04:11]} 13. h3 {[%emt 0:01:09]} Nge5 {[%emt 0:00:18]} 14. Nfxe5 {[%emt 0:00:15]} Nxe5 {[%emt 0:00:07]} 15. Nb6 {[%emt 0:00:31]} Ra7 {[%emt 0:00:07]} 16. Bc3 {[%emt 0:00:30]} Nd7 {[%emt 0:01:45]} 17. Nd5 {[%emt 0:00:26]} Qd8 {[%emt 0:00:29]} 18. Bxg7 {[%emt 0:00:43]} Kxg7 {[%emt 0:00:03]} 19. Qd2 {[%emt 0:00:50]} b6 {[%emt 0:02:42]} 20. Qc3+ {[%emt 0:00:34]} Kg8 {[%emt 0:01:24]} 21. axb6 {[%emt 0:00:55]} Nxb6 {[%emt 0:00:05]} 22. Ne3 {[%emt 0:00:23]} Nd7 {[%emt 0:03:05]} 23. f4 {[%emt 0:01:23]} e6 {[%emt 0:02:23]} 24. Ng4 {[%emt 0:01:18]} h5 {[%emt 0:02:55]} 25. Nh6+ {[%emt 0:02:17]} Kf8 {[%emt 0:00:38]} 26. f5 {[%emt 0:01:40]} Qg5 {[%emt 0:04:51]} 27. fxe6 {[%emt 0:01:08]} Ne5 {[%emt 0:00:45]} 28. Nxf7 {[%emt 0:00:26]} Kg8 {[%emt 0:03:47]} 29. Nxg5 {[%emt 1:22:21]} 1-0

[Event "ITT 1st Parada Jamundi 2022"]
[Site "Jamundi Valle"]
[Date "2022.12.11"]
[Round "9.26"]
[White "Contreras, Camilo Andres"]
[Black "Caro Gallego, James Stiven"]
[Result "1/2-1/2"]
[ECO "B41"]
[WhiteElo "1848"]
[BlackElo "1884"]
[Annotator "NA RC COMBH"]
[PlyCount "105"]
[EventDate "2022.12.05"]
[EventType "swiss"]
[EventCountry "COL"]
[SourceTitle "playchess.com"]
[Source "ChessBase"]
[SourceQuality "1"]
[TimeControl "5400+30"]

1. e4 {[%emt 0:00:14]} c5 {[%emt 0:00:34]} 2. Nf3 {[%emt 0:00:02]} e6 {[%emt 1:30:56]} 3. d4 {[%emt 1:31:44]} cxd4 {[%emt 0:00:30]} 4. Nxd4 {[%emt 0:00:30]} a6 {[%emt 0:00:00]} 5. Bd3 {[%emt 0:00:00]} Qc7 {[%emt 0:00:00]} 6. c4 {[%emt 0:00:00]} Bc5 {[%emt 0:00:00]} 7. Nb3 {[%emt 0:00:00]} Ba7 {[%emt 0:00:00]} 8. Qe2 {[%emt 0:00:00]} Nc6 {[%emt 0:00:00]} 9. a3 {[%emt 0:00:00]} Nd4 {[%emt 0:00:00]} 10. Nxd4 {[%emt 0:00:00]} Bxd4 {[%emt 0:03:30]} 11. Be3 {[%emt 0:03:30]} Qb6 {[%emt 0:00:00]} 12. Bxd4 {[%emt 0:00:00]} Qxd4 {[%emt 0:00:00]} 13. O-O {[%emt 0:00:00]} b6 {[%emt 0:00:00]} 14. Nc3 {[%emt 0:00:00]} Bb7 {[%emt 0:00:00]} 15. Rad1 {[%emt 0:00:00]} Ne7 {[%emt 0:00:00]} 16. Bc2 {[%emt 0:00:00]} Qe5 {[%emt 0:00:00]} 17. Na4 {[%emt 0:00:00]} Qc7 {[%emt 0:00:00]} 18. Rd2 {[%emt 0:00:00]} Bc6 {[%emt 0:00:00]} 19. Rfd1 {[%emt 0:00:00]} Ng6 {[%emt 0:00:00]} 20. c5 {[%emt 0:00:00]} Bb5 {[%emt 0:00:00]} 21. Qe3 {[%emt 0:00:00]} bxc5 {[%emt 0:00:00]} 22. Nxc5 {[%emt 0:00:00]} Ne5 {[%emt 0:00:00]} 23. b3 {[%emt 0:00:00]} Rc8 {[%emt 0:00:00]} 24. a4 {[%emt 0:00:00]} Qxc5 {[%emt 0:00:00]} 25. Qxc5 {[%emt 0:00:00]} Rxc5 {[%emt 0:07:30]} 26. axb5 {[%emt 0:07:30]} axb5 {[%emt 0:00:00]} 27. f4 {[%emt 0:00:00]} Ng4 {[%emt 0:00:00]} 28. Rxd7 {[%emt 0:00:00]} O-O {[%emt 0:00:00]} 29. R1d2 {[%emt 0:00:00]} g6 {[%emt 0:00:00]} 30. Bd1 {[%emt 0:00:00]} Nf6 {[%emt 0:00:00]} 31. R7d4 {[%emt 0:00:00]} Rc3 {[%emt 0:00:00]} 32. Rb4 {[%emt 0:00:00]} Rb8 {[%emt 0:00:00]} 33. Kf2 {[%emt 0:00:00]} Rb7 {[%emt 0:00:00]} 34. Bf3 {[%emt 0:00:00]} Rc5 {[%emt 0:00:00]} 35. e5 {[%emt 0:00:00]} Nd5 {[%emt 0:00:00]} 36. Bxd5 {[%emt 0:00:00]} exd5 {[%emt 0:00:00]} 37. Rbd4 {[%emt 0:00:00]} Rd7 {[%emt 0:00:00]} 38. g4 {[%emt 0:00:00]} Kf8 {[%emt 0:00:00]} 39. f5 {[%emt 0:00:00]} Ke7 {[%emt 0:00:00]} 40. Ke3 {[%emt 0:00:00]} h5 {[%emt 0:00:00]} 41. h3 {[%emt 0:00:00]} hxg4 {[%emt 0:00:00]} 42. hxg4 {[%emt 0:00:00]} gxf5 {[%emt 0:00:00]} 43. gxf5 {[%emt 0:00:00]} Rc3+ {[%emt 0:00:00]} 44. R2d3 {[%emt 0:00:00]} Rxd3+ {[%emt 0:00:00]} 45. Kxd3 {[%emt 0:00:00]} Rd8 {[%emt 0:00:00]} 46. Kc3 {[%emt 0:00:00]} f6 {[%emt 0:00:00]} 47. e6 {[%emt 0:00:00]} Kd6 {[%emt 0:00:00]} 48. Kb4 {[%emt 0:00:00]} Ke5 {[%emt 0:00:00]} 49. Rd1 {[%emt 0:00:00]} Kxf5 {[%emt 0:00:00]} 50. e7 {[%emt 0:00:00]} Re8 {[%emt 0:00:00]} 51. Re1 {[%emt 0:12:30]} Kg6 {[%emt 0:13:00]} 52. Kxb5 {[%emt 0:00:30]} Rxe7 {[%emt 0:00:30]} 53. Kb4 {[%emt 0:00:30]} 1/2-1/2

[Event "ITT 1st Parada Jamundi 2022"]
[Site "Jamundi Valle"]
[Date "2022.12.11"]
[Round "9.29"]
[White "Galan Palacio, Anjaly Daniela"]
[Black "Rendon, Isabela"]
[Result "1-0"]
[ECO "C56"]
[WhiteElo "1758"]
[BlackElo "1139"]
[Annotator "NA RC COMBH"]
[PlyCount "73"]
[EventDate "2022.12.05"]
[EventType "swiss"]
[EventCountry "COL"]
[SourceTitle "playchess.com"]
[Source "ChessBase"]
[SourceQuality "1"]
[TimeControl "5400+30"]

1. e4 {[%emt 0:01:03]} e5 {[%emt 0:00:59]} 2. Nf3 {[%emt 0:00:12]} Nc6 {[%emt 0:00:09]} 3. d4 {[%emt 0:00:09]} exd4 {[%emt 0:00:12]} 4. Bc4 {[%emt 0:00:11]} Nf6 {[%emt 0:00:36]} 5. O-O {[%emt 0:01:11]} Be7 {[%emt 0:01:19]} 6. e5 {[%emt 0:00:13]} Ne4 {[%emt 0:00:24]} 7. Re1 {[%emt 0:00:55]} d5 {[%emt 0:00:14]} 8. exd6 {[%emt 0:00:53]} Nxd6 {[%emt 0:00:19]} 9. Bd5 {[%emt 0:00:57]} O-O {[%emt 0:01:09]} 10. Bxc6 {[%emt 0:00:14]} bxc6 {[%emt 0:00:11]} 11. Nxd4 {[%emt 0:00:40]} Bb7 {[%emt 0:01:05]} 12. Nc3 {[%emt 0:01:17]} Qd7 {[%emt 0:02:00]} 13. Na4 {[%emt 0:00:40]} Nc4 {[%emt 0:02:13]} 14. b3 {[%emt 0:06:21]} Nb6 {[%emt 0:00:29]} 15. Nxb6 {[%emt 0:03:51]} cxb6 {[%emt 0:00:37]} 16. Nf5 {[%emt 0:02:30]} Qxf5 {[%emt 0:01:08]} 17. Rxe7 {[%emt 0:00:21]} Qf6 {[%emt 0:00:40]} 18. Ba3 {[%emt 0:00:12]} Rfd8 {[%emt 0:00:47]} 19. Qe1 {[%emt 0:00:34]} Rab8 {[%emt 0:01:14]} 20. Rb1 {[%emt 0:00:37]} c5 {[%emt 0:00:33]} 21. Qe2 {[%emt 0:04:02]} Qg5 {[%emt 0:00:43]} 22. f3 {[%emt 0:00:31]} h6 {[%emt 0:00:16]} 23. Re1 {[%emt 0:01:13]} Rd2 {[%emt 0:01:27]} 24. Qf1 {[%emt 0:02:49]} Rxc2 {[%emt 0:03:54]} 25. h4 {[%emt 0:05:14]} Qg6 {[%emt 0:01:42]} 26. h5 {[%emt 0:03:26]} Qxh5 {[%emt 0:05:15]} 27. Qd3 {[%emt 0:01:32]} Qg6 {[%emt 0:00:31]} 28. Qxg6 {[%emt 0:00:29]} fxg6 {[%emt 0:00:09]} 29. Rc7 {[%emt 0:00:40]} Rxa2 {[%emt 0:00:50]} 30. Bc1 {[%emt 0:01:58]} Bd5 {[%emt 0:01:02]} 31. Bf4 {[%emt 0:00:50]} Rf8 {[%emt 0:00:33]} 32. Bd6 {[%emt 0:04:04]} Rd8 {[%emt 0:00:51]} 33. Bg3 {[%emt 0:00:52]} Bxb3 {[%emt 0:01:47]} 34. Ree7 {[%emt 0:00:21]} Rf8 {[%emt 0:10:02]} 35. Rxg7+ {[%emt 0:00:15]} Kh8 {[%emt 0:00:04]} 36. Rh7+ {[%emt 0:00:08]} Kg8 {[%emt 0:00:03]} 37. Rcg7# {[%emt 0:00:01]} 1-0

[Event "ITT 1st Parada Jamundi 2022"]
[Site "Jamundi Valle"]
[Date "2022.12.11"]
[Round "9.30"]
[White "Pena Ramirez, Jatniel"]
[Black "Hernandez Jimenez, Xavi"]
[Result "0-1"]
[ECO "C54"]
[WhiteElo "1201"]
[BlackElo "1678"]
[Annotator "NA RC COMBH"]
[PlyCount "44"]
[EventDate "2022.12.05"]
[EventType "swiss"]
[EventCountry "COL"]
[SourceTitle "playchess.com"]
[Source "ChessBase"]
[SourceQuality "1"]
[TimeControl "5400+30"]

1. e4 {[%emt 0:00:03]} e5 {[%emt 0:00:42]} 2. Nf3 {[%emt 0:00:16]} Nc6 {[%emt 0:00:30]} 3. Bc4 {[%emt 0:00:08]} Bc5 {[%emt 0:00:20]} 4. c3 {[%emt 0:00:08]} Nf6 {[%emt 0:00:31]} 5. d3 {[%emt 0:00:08]} d6 {[%emt 0:00:13]} 6. Bb3 {[%emt 0:00:08]} Bb6 {[%emt 0:00:49]} 7. Nbd2 {[%emt 0:00:15]} Ne7 {[%emt 0:00:24]} 8. Nf1 {[%emt 0:00:27]} Ng6 {[%emt 0:00:24]} 9. Ng3 {[%emt 0:00:20]} O-O {[%emt 0:01:44]} 10. O-O {[%emt 0:00:27]} Be6 {[%emt 0:00:23]} 11. h3 {[%emt 0:00:44]} h6 {[%emt 0:01:49]} 12. Be3 {[%emt 0:01:39]} Qd7 {[%emt 0:01:16]} 13. Qe2 {[%emt 0:01:05]} Rae8 {[%emt 0:07:19]} 14. Rad1 {[%emt 0:02:03]} Bxh3 {[%emt 0:04:01]} 15. gxh3 {[%emt 0:06:12]} Qxh3 {[%emt 0:00:08]} 16. Nf5 {[%emt 0:08:36]} Ng4 {[%emt 0:01:18]} 17. Rd2 {[%emt 0:04:07]} Re6 {[%emt 0:01:05]} 18. Bd1 {[%emt 0:01:32]} Rf6 {[%emt 0:02:13]} 19. Re1 {[%emt 0:01:08]} Rxf5 {[%emt 0:01:05]} 20. exf5 {[%emt 0:00:10]} Nh4 {[%emt 0:00:04]} 21. Qf1 {[%emt 0:01:00]} Nxf3+ {[%emt 0:00:06]} 22. Bxf3 {[%emt 0:00:05]} Qh2# {[%emt 0:00:07]} 0-1